bitfinex-derivatives/quotes_BTCF0:USTF0_20250626
["timestamp","ask_amount","ask_price","bid_price","bid_amount"]
[1750898943354,0.1860138,107460.0,107450.0,0.13112]
[1750898943554,0.74144238,107470.0,107460.0,0.0643]
[1750898943753,2.05921334,107470.0,107460.0,0.0643]
[1750898943955,2.08961334,107470.0,107460.0,0.0643]
[1750898944464,2.12241334,107470.0,107460.0,0.0643]
[1750898944657,2.54396084,107470.0,107460.0,0.0643]
[1750898945066,2.54396084,107470.0,107460.0,0.0653]
[1750898945362,2.54296084,107470.0,107460.0,0.0653]
[1750898945564,2.54396084,107470.0,107460.0,0.0653]
[1750898945954,2.54396084,107470.0,107460.0,0.001]
[1750898946451,2.57636084,107470.0,107460.0,0.001]
[1750898950462,2.57636084,107470.0,107460.0,0.031]
[1750898950868,2.57636084,107470.0,107460.0,0.062]
[1750898951268,2.57644084,107470.0,107460.0,0.062]
[1750898951468,2.48084084,107470.0,107460.0,0.062]
[1750898951968,1.78228084,107470.0,107460.0,0.062]
[1750898952169,2.27044709,107470.0,107460.0,0.062]
[1750898952469,2.34081085,107470.0,107460.0,0.062]
[1750898958475,2.06017334,107470.0,107460.0,0.062]
[1750898958665,2.34081085,107470.0,107460.0,0.062]
[1750898967981,2.37281085,107470.0,107460.0,0.062]
[1750898968791,2.40351085,107470.0,107460.0,0.062]
[1750898972281,2.5438529,107470.0,107460.0,0.062]
[1750898975788,2.5748529,107470.0,107460.0,0.062]
[1750898976681,2.5748529,107470.0,107460.0,0.031]
[1750898978692,2.5748529,107470.0,107460.0,0.001]
[1750898983995,2.15387334,107470.0,107460.0,0.001]
[1750898984301,2.5748529,107470.0,107460.0,0.001]
[1750898993900,2.36436312,107470.0,107460.0,0.001]
[1750898994197,2.5748529,107470.0,107460.0,0.001]
[1750898996306,1.8764129,107470.0,107460.0,0.001]
[1750898996510,2.5768529,107470.0,107460.0,0.0328]
[1750898996811,2.5768529,107470.0,107460.0,0.0653]
[1750899006518,2.14018312,107470.0,107460.0,0.27578978]
[1750899006719,2.15018312,107470.0,107460.0,0.27578978]
[1750899006912,2.15018312,107470.0,107460.0,0.0956]
[1750899011021,1.58222312,107470.0,107460.0,0.0956]
[1750899011322,2.20434002,107470.0,107460.0,0.30608978]
[1750899011715,2.20434002,107470.0,107460.0,0.0956]
[1750899013523,2.20434002,107470.0,107460.0,0.30608978]
[1750899014618,2.20434002,107470.0,107460.0,0.0956]
[1750899015521,1.84354002,107470.0,107460.0,0.2816153]
[1750899017318,1.84354002,107470.0,107460.0,0.0956]
[1750899017524,1.87634002,107470.0,107460.0,0.2816153]
[1750899019122,2.0868298,107470.0,107460.0,0.001]
[1750899019325,2.0778929,107470.0,107460.0,0.001]
[1750899019527,2.38147468,107470.0,107460.0,0.001]
[1750899019721,0.1860326,107450.0,107440.0,0.00093071]
[1750899019917,1.4810523,107450.0,107440.0,0.00093071]
[1750899020122,2.00033186,107450.0,107440.0,0.00093071]
[1750899020925,2.00033186,107450.0,107440.0,0.00293071]
[1750899021525,2.00033186,107450.0,107440.0,0.00593071]
[1750899022826,2.43552437,107450.0,107440.0,0.00593071]
[1750899023622,2.43552437,107450.0,107440.0,1e-08]
[1750899023623,2.58142929,107450.0,107440.0,1e-08]
[1750899023818,2.67452129,107450.0,107440.0,1e-08]
[1750899024619,2.58142929,107450.0,107440.0,1e-08]
[1750899026223,2.51172691,107450.0,107440.0,1e-08]
[1750899027729,2.48211595,107450.0,107440.0,1e-08]
[1750899028331,2.76133082,107450.0,107440.0,1e-08]
[1750899028833,2.57518682,107450.0,107440.0,1e-08]
[1750899030428,2.6047078,107450.0,107440.0,1e-08]
[1750899032836,2.8908518,107450.0,107440.0,1e-08]
[1750899033936,3.3908518,107450.0,107440.0,1e-08]
[1750899036641,0.1860841,107420.0,107410.0,0.06383097]
[1750899036840,2.26532188,107420.0,107410.0,0.00093097]
[1750899037136,2.35862188,107420.0,107410.0,0.00093097]
[1750899038242,2.35862188,107420.0,107410.0,0.00393097]
[1750899039343,2.35862188,107420.0,107410.0,0.00593097]
[1750899039843,2.45171874,107420.0,107410.0,0.00593097]
[1750899045852,2.52670226,107420.0,107410.0,0.00593097]
[1750899048556,2.52670226,107420.0,107410.0,0.00393097]
[1750899049361,2.52670226,107420.0,107410.0,0.00093097]
[1750899050665,2.52670226,107420.0,107410.0,7e-08]
[1750899051258,2.68130226,107420.0,107410.0,7e-08]
[1750899051758,1.98066226,107420.0,107410.0,7e-08]
[1750899051958,2.68074226,107420.0,107410.0,7e-08]
[1750899052154,2.68074226,107420.0,107410.0,0.03230007]
[1750899052352,2.75483963,107420.0,107410.0,0.03230007]
[1750899052967,2.75483963,107420.0,107410.0,7e-08]
[1750899055360,2.05475963,107420.0,107410.0,7e-08]
[1750899055562,2.75435963,107420.0,107410.0,7e-08]
[1750899055867,2.75435963,107420.0,107410.0,0.03030007]
[1750899056166,2.05475963,107420.0,107410.0,0.03030007]
[1750899056366,2.75423963,107420.0,107410.0,0.03030007]
[1750899056763,2.72169963,107420.0,107410.0,0.03030007]
[1750899056959,2.58985963,107420.0,107410.0,0.03030007]
[1750899057164,2.72165963,107420.0,107410.0,0.06360007]
[1750899058063,1.83745963,107420.0,107410.0,0.06360007]
[1750899058263,2.41312277,107420.0,107410.0,0.06360007]
[1750899060868,2.41312277,107420.0,107410.0,7e-08]
[1750899061070,2.47712277,107420.0,107410.0,7e-08]
[1750899061262,2.72481963,107420.0,107410.0,7e-08]
[1750899061572,3.00570311,107420.0,107410.0,7e-08]
[1750899062270,2.93160574,107420.0,107410.0,7e-08]
[1750899062777,3.43160574,107420.0,107410.0,7e-08]
[1750899063780,0.1861183,107400.0,107390.0,0.10685993]
[1750899063967,2.56524954,107400.0,107390.0,0.10685993]
[1750899064575,2.28436606,107400.0,107390.0,0.10685993]
[1750899064874,2.28436606,107400.0,107390.0,0.10885993]
[1750899065070,2.28436606,107400.0,107390.0,0.11185993]
[1750899065568,2.56524954,107400.0,107390.0,0.11185993]
[1750899065775,2.56524954,107400.0,107390.0,3e-08]
[1750899065976,2.81408545,107400.0,107390.0,3e-08]
[1750899066480,2.72146374,107400.0,107390.0,3e-08]
[1750899066673,0.1861356,107390.0,107380.0,0.03173123]
[1750899066868,1.37720511,107390.0,107380.0,0.03173123]
[1750899067069,1.40780511,107390.0,107380.0,0.03173123]
[1750899067976,1.40780511,107390.0,107380.0,0.03473123]
[1750899068276,1.40780511,107390.0,107380.0,0.03873123]
[1750899070279,1.41724926,107390.0,107380.0,0.03873123]
[1750899072983,1.41724926,107390.0,107380.0,0.03573123]
[1750899073182,1.41724926,107390.0,107380.0,0.03673123]
[1750899073376,1.41724926,107390.0,107380.0,0.06273123]
[1750899075686,1.34298421,107390.0,107380.0,0.06273123]
[1750899077085,1.34298421,107390.0,107380.0,0.03273123]
[1750899078376,1.34298421,107390.0,107380.0,0.00193123]
[1750899078982,1.34298421,107390.0,107380.0,3e-08]
[1750899079885,1.43610708,107390.0,107380.0,3e-08]
[1750899082591,1.51037213,107390.0,107380.0,3e-08]
[1750899084884,1.34298421,107390.0,107380.0,3e-08]
[1750899085090,2.01198421,107390.0,107380.0,3e-08]
[1750899085692,2.04418421,107390.0,107380.0,3e-08]
[1750899086692,2.29190708,107390.0,107380.0,3e-08]
[1750899100196,2.39190708,107390.0,107380.0,3e-08]
[1750899100402,2.98452879,107390.0,107380.0,3e-08]
[1750899100597,3.48402879,107390.0,107380.0,3e-08]
[1750899101202,3.38402879,107390.0,107380.0,3e-08]
[1750899101403,3.29140708,107390.0,107380.0,3e-08]
[1750899103505,3.36566705,107390.0,107380.0,3e-08]
[1750899104709,3.29140708,107390.0,107380.0,3e-08]
[1750899106510,3.29440708,107390.0,107380.0,3e-08]
[1750899107209,0.1861531,107380.0,107370.0,0.0326]
[1750899107406,0.1861704,107370.0,107360.0,0.0632]
[1750899107605,1.93697486,107370.0,107360.0,0.0943]
[1750899114315,1.93697486,107370.0,107360.0,0.0311]
[1750899114511,2.03267486,107370.0,107360.0,0.0311]
[1750899115116,0.1861878,107360.0,107350.0,0.03123149]
[1750899115318,1.57159219,107360.0,107350.0,0.03123149]
[1750899115711,1.29070871,107360.0,107350.0,0.03123149]
[1750899116308,1.29070871,107360.0,107350.0,0.03523149]
[1750899116819,1.57159219,107360.0,107350.0,0.03523149]
[1750899118214,1.29070871,107360.0,107350.0,0.06833149]
[1750899120713,1.60349219,107360.0,107350.0,0.03523149]
[1750899121023,1.67774905,107360.0,107350.0,0.00493149]
[1750899121320,1.73854905,107360.0,107350.0,0.00493149]
[1750899122623,1.66429219,107360.0,107350.0,0.00493149]
[1750899123235,1.73854905,107360.0,107350.0,0.00493149]
[1750899125920,1.74054905,107360.0,107350.0,9e-08]
[1750899126119,0.1862051,107350.0,107340.0,0.0645]
[1750899126424,1.99222956,107350.0,107340.0,0.0645]
[1750899126626,1.99222956,107350.0,107340.0,0.0316]
[1750899127022,0.1862225,107340.0,107330.0,0.0328]
[1750899127227,0.1862225,107340.0,107330.0,0.065]
[1750899127228,1.25444076,107340.0,107330.0,0.065]
[1750899128331,1.28614076,107340.0,107330.0,0.0322]
[1750899128533,1.31704076,107340.0,107330.0,0.0322]
[1750899129131,1.32657747,107340.0,107330.0,0.0342]
[1750899129721,1.96545747,107340.0,107330.0,0.0646]
[1750899129932,1.26397747,107340.0,107330.0,0.0646]
[1750899130325,1.96541747,107340.0,107330.0,0.0646]
[1750899130731,0.98309399,107340.0,107330.0,0.0646]
[1750899130938,1.96537747,107340.0,107330.0,0.0646]
[1750899131135,1.68449399,107340.0,107330.0,0.0646]
[1750899131335,1.96537747,107340.0,107330.0,0.0646]
[1750899132038,1.96537747,107340.0,107330.0,0.0656]
[1750899132735,1.96541747,107340.0,107330.0,0.0656]
[1750899133130,1.96541747,107340.0,107330.0,0.501936]
[1750899133131,0.97355728,107340.0,107330.0,0.501936]
[1750899133328,0.25275728,107340.0,107330.0,0.78281948]
[1750899133529,0.7927163,107340.0,107330.0,0.81501948]
[1750899133732,0.7927163,107340.0,107330.0,0.534136]
[1750899135342,0.82152477,107340.0,107330.0,0.534136]
[1750899136340,0.82152477,107340.0,107330.0,0.284136]
[1750899136935,0.25204477,107340.0,107330.0,0.284136]
[1750899137140,0.82172477,107340.0,107330.0,0.284136]
[1750899139746,0.82172477,107340.0,107330.0,0.4703758]
[1750899140044,0.82172477,107340.0,107330.0,0.284136]
[1750899140842,1.18252477,107340.0,107330.0,0.284136]
[1750899141147,0.82172477,107340.0,107330.0,0.284136]
[1750899141346,0.82172477,107340.0,107330.0,0.4703758]
[1750899144252,0.82172477,107340.0,107330.0,0.2840398]
[1750899144451,0.82172477,107340.0,107330.0,0.4703758]
[1750899146150,0.06582227,107340.0,107330.0,0.4703758]
[1750899146350,0.0170138,107340.0,107330.0,1.36205928]
[1750899146549,0.0170138,107340.0,107330.0,1.93209928]
[1750899149153,0.82809703,107360.0,107340.0,0.1862225]
[1750899149358,0.45144103,107360.0,107350.0,0.6443051]
[1750899150047,0.27862496,107360.0,107350.0,1.11148458]
[1750899150657,0.27862496,107360.0,107350.0,0.8306011]
[1750899151160,0.24979858,107360.0,107350.0,0.8306011]
[1750899151658,0.25179858,107360.0,107350.0,0.8306011]
[1750899152159,0.01905048,107360.0,107350.0,1.11148458]
[1750899152458,0.01705048,107360.0,107350.0,1.11148458]
[1750899152660,0.01905048,107360.0,107350.0,1.11148458]
[1750899152958,0.01905048,107360.0,107350.0,1.93144458]
[1750899153354,0.01905048,107360.0,107350.0,1.94107375]
[1750899153554,0.02105048,107360.0,107350.0,1.94107375]
[1750899154059,0.01905048,107360.0,107350.0,1.94107375]
[1750899154261,0.01905048,107360.0,107350.0,1.94307375]
[1750899154456,0.01705048,107360.0,107350.0,1.94307375]
[1750899154661,0.01705048,107360.0,107350.0,1.94707375]
[1750899155258,0.01705048,107360.0,107350.0,1.69707375]
[1750899157257,0.04588416,107360.0,107350.0,1.69707375]
[1750899158059,0.01705048,107360.0,107350.0,1.69707375]
[1750899158562,0.04588439,107360.0,107350.0,1.69707375]
[1750899159254,0.04588439,107360.0,107350.0,1.77290688]
[1750899160062,0.01705048,107360.0,107350.0,1.77290688]
[1750899160561,0.04588279,107360.0,107350.0,1.77290688]
[1750899161765,0.3257896,107380.0,107370.0,0.18617]
[1750899162067,0.7681896,107380.0,107370.0,0.20121305]
[1750899162460,0.7681896,107380.0,107370.0,0.20120045]
[1750899162669,0.7681896,107380.0,107370.0,1.31814445]
[1750899162670,0.35,107380.0,107370.0,1.31814445]
[1750899162870,0.001,107390.0,107380.0,0.1861372]
[1750899163165,0.0304,107410.0,107400.0,0.1861001]
[1750899163367,0.2487654,107420.0,107410.0,0.1860828]
[1750899163567,0.1149,107420.0,107410.0,0.83738283]
[1750899163864,0.0322,107420.0,107410.0,1.2143082]
[1750899164058,0.0322,107420.0,107410.0,1.2470082]
[1750899164263,0.2182648,107420.0,107410.0,1.23739165]
[1750899166160,0.2282648,107420.0,107410.0,1.23739165]
[1750899166365,0.2596648,107420.0,107410.0,1.59592817]
[1750899168473,0.2596648,107420.0,107410.0,0.89220817]
[1750899168672,0.2596648,107420.0,107410.0,1.59604817]
[1750899168970,0.2596648,107420.0,107410.0,0.89220817]
[1750899169170,0.2596648,107420.0,107410.0,1.59600817]
[1750899169474,0.2496648,107420.0,107410.0,1.59596817]
[1750899170074,0.2496648,107420.0,107410.0,1.87685165]
[1750899171776,0.0636,107420.0,107410.0,1.87685165]
[1750899171977,0.0636,107420.0,107410.0,2.06304365]
[1750899172168,0.0636,107420.0,107410.0,2.15644365]
[1750899172565,0.0322,107420.0,107410.0,2.15644365]
[1750899172773,0.0322,107420.0,107410.0,1.97025165]
[1750899173277,0.2182651,107420.0,107410.0,1.97025165]
[1750899174081,0.2482651,107420.0,107410.0,1.97025165]
[1750899174376,0.2482651,107420.0,107410.0,1.61015165]
[1750899174577,0.2482651,107420.0,107410.0,1.57735165]
[1750899176371,0.55796153,107420.0,107410.0,0.90584807]
[1750899176878,0.91876153,107420.0,107410.0,0.01532537]
[1750899177076,0.92876153,107420.0,107410.0,0.01532537]
[1750899178078,1.27876153,107420.0,107410.0,0.01532537]
[1750899179284,0.1860827,107410.0,107400.0,0.3608]
[1750899179480,0.58987913,107410.0,107400.0,0.3608]
[1750899180880,0.58987913,107410.0,107400.0,0.5469]
[1750899181478,0.58987913,107410.0,107400.0,0.3608]
[1750899181679,0.30899565,107410.0,107400.0,0.5469]
[1750899181881,0.30899565,107410.0,107400.0,0.5489]
[1750899182778,0.30899565,107410.0,107400.0,0.3628]
[1750899184380,0.30899565,107410.0,107400.0,0.5489]
[1750899185283,0.30899565,107410.0,107400.0,0.82978348]
[1750899185486,0.30899565,107410.0,107400.0,1.13978348]
[1750899185687,0.30899565,107410.0,107400.0,1.17238348]
[1750899186186,0.02881295,107410.0,107400.0,1.17238348]
[1750899186487,0.30898777,107420.0,107410.0,0.20170013]
[1750899186693,0.30898777,107420.0,107410.0,1.93260361]
[1750899186694,0.30898776,107420.0,107410.0,1.93260361]
[1750899187484,0.30998776,107420.0,107410.0,1.93260361]
[1750899194486,0.26346776,107420.0,107410.0,1.93260361]
[1750899197590,0.26346776,107420.0,107410.0,1.22868361]
[1750899197790,0.26346776,107420.0,107410.0,1.93168361]
[1750899202707,0.26346776,107420.0,107410.0,1.65080013]
[1750899203005,0.26346776,107420.0,107410.0,1.93168361]
[1750899208508,0.03086886,107420.0,107410.0,1.93168361]
[1750899209209,0.002,107420.0,107410.0,2.00546679]
[1750899209911,0.0310757,107420.0,107410.0,2.00546679]
[1750899212917,0.002,107420.0,107410.0,2.48171879]
[1750899213711,0.20296828,107440.0,107430.0,0.1860475]
[1750899213912,0.21512242,107440.0,107430.0,1.86484765]
[1750899214121,0.21512242,107440.0,107430.0,1.93054765]
[1750899214314,0.02907902,107440.0,107430.0,1.93054765]
[1750899215220,0.03207902,107440.0,107430.0,1.93054765]
[1750899215519,0.03507902,107440.0,107430.0,1.93054765]
[1750899216715,0.22110922,107440.0,107430.0,1.93054765]
[1750899217720,0.006,107440.0,107430.0,1.93054765]
[1750899218222,0.1920302,107440.0,107430.0,1.93054765]
[1750899220120,0.006,107440.0,107430.0,1.93054765]
[1750899223227,0.001,107450.0,107440.0,0.1860302]
[1750899223428,0.01711879,107460.0,107450.0,0.1860129]
[1750899223628,0.01711879,107460.0,107450.0,1.91239638]
[1750899225018,0.20611429,107460.0,107450.0,1.91239638]
[1750899225223,0.20611429,107460.0,107450.0,1.21079638]
[1750899225426,0.20611429,107460.0,107450.0,1.6316329]
[1750899225724,0.24081429,107460.0,107450.0,1.88001638]
[1750899225922,0.27141429,107460.0,107450.0,1.88001638]
[1750899227230,0.27141429,107460.0,107450.0,1.8896035]
[1750899231334,0.08541879,107460.0,107450.0,1.8896035]
[1750899231530,0.08541879,107460.0,107450.0,1.9199035]
[1750899231726,0.05481879,107460.0,107450.0,1.9199035]
[1750899232128,0.24081459,107460.0,107450.0,1.9199035]
[1750899232329,0.05481879,107460.0,107450.0,1.9199035]
[1750899232629,0.24081459,107460.0,107450.0,1.9199035]
[1750899232828,0.05481879,107460.0,107450.0,1.9199035]
[1750899233536,0.02211879,107460.0,107450.0,1.9199035]
[1750899234630,0.005,107460.0,107450.0,1.9199035]
[1750899234934,0.005,107460.0,107450.0,1.93518919]
[1750899240644,0.356957,107480.0,107470.0,0.1859785]
[1750899240840,0.40035764,107480.0,107470.0,1.87854198]
[1750899241040,0.3711625,107480.0,107470.0,1.87854198]
[1750899241338,0.324668,107480.0,107470.0,1.87854198]
[1750899241843,0.329668,107480.0,107470.0,1.87854198]
[1750899242441,0.333668,107480.0,107470.0,1.87854198]
[1750899242647,0.328668,107480.0,107470.0,1.87854198]
[1750899242841,0.330668,107480.0,107470.0,1.87854198]
[1750899243036,0.327668,107480.0,107470.0,1.87854198]
[1750899243831,0.281174,107480.0,107470.0,1.87854198]
[1750899244036,0.004,107480.0,107470.0,1.91034198]
[1750899244236,0.004,107480.0,107470.0,1.94284198]
[1750899244743,0.1899611,107480.0,107470.0,1.94284198]
[1750899245341,0.1899611,107480.0,107470.0,2.01670217]
[1750899246141,0.004,107480.0,107470.0,2.01670217]
[1750899246941,0.1899611,107480.0,107470.0,2.01670217]
[1750899247244,0.21921354,107480.0,107470.0,2.01670217]
[1750899247436,0.21921354,107480.0,107470.0,2.37750217]
[1750899248142,0.25141354,107480.0,107470.0,2.37750217]
[1750899249938,0.25141354,107480.0,107470.0,1.67662217]
[1750899250240,0.25141354,107480.0,107470.0,2.37710217]
[1750899251448,0.25141354,107480.0,107470.0,1.61232217]
[1750899251638,0.1859784,107470.0,107460.0,0.93597631]
[1750899251836,0.31073084,107470.0,107460.0,0.70611753]
[1750899252043,0.31073084,107470.0,107460.0,0.91211333]
[1750899252044,0.59161432,107470.0,107460.0,0.91211333]
[1750899252243,0.59161432,107470.0,107460.0,0.56211333]
[1750899252449,0.31073084,107470.0,107460.0,0.56211333]
[1750899252743,0.31073084,107470.0,107460.0,0.91311333]
[1750899252943,0.31073084,107470.0,107460.0,0.56311333]
[1750899254645,0.31073084,107470.0,107460.0,0.91311333]
[1750899255443,0.31073084,107470.0,107460.0,1.19399681]
[1750899258148,0.2814784,107470.0,107460.0,1.19399681]
[1750899258449,0.0955,107470.0,107460.0,1.19399681]
[1750899258639,0.2814785,107470.0,107460.0,1.28909681]
[1750899258951,0.065,107470.0,107460.0,1.28909681]
[1750899259244,0.2645666,107480.0,107470.0,0.1859785]
[1750899259552,0.35611987,107480.0,107470.0,1.31002198]
[1750899260341,0.35811987,107480.0,107470.0,1.31002198]
[1750899261352,0.35811987,107480.0,107470.0,1.87842198]
[1750899261949,0.3288666,107480.0,107470.0,1.87842198]
[1750899262555,0.3298666,107480.0,107470.0,1.87842198]
[1750899263952,0.35913737,107480.0,107470.0,1.87842198]
[1750899264251,0.35913737,107480.0,107470.0,1.52842198]
[1750899265045,0.35913737,107480.0,107470.0,1.2475385]
[1750899265245,0.35913737,107480.0,107470.0,1.52842198]
[1750899265446,0.35913737,107480.0,107470.0,0.96002198]
[1750899266361,0.3298666,107480.0,107470.0,0.96002198]
[1750899266660,0.35914526,107480.0,107470.0,0.41324348]
[1750899266854,0.35914526,107480.0,107470.0,0.3183385]
[1750899267355,0.1859784,107470.0,107460.0,1.35613343]
[1750899267565,0.1859784,107470.0,107460.0,1.70613343]
[1750899267566,0.2507784,107470.0,107460.0,1.70613343]
[1750899267752,0.2507784,107470.0,107460.0,1.13745343]
[1750899268058,0.28005979,107470.0,107460.0,0.38015733]
[1750899268860,0.28005979,107470.0,107460.0,0.38115733]
[1750899270358,0.28005979,107470.0,107460.0,0.33466213]
[1750899270854,0.98174327,107470.0,107460.0,0.001]
[1750899271057,0.99881329,107470.0,107460.0,0.001]
[1750899271655,1.23491729,107470.0,107460.0,0.001]
[1750899273562,0.95403381,107470.0,107460.0,0.001]
[1750899273760,0.76792981,107470.0,107460.0,0.001]
[1750899274463,0.76792981,107470.0,107460.0,0.1869957]
[1750899274664,0.76792981,107470.0,107460.0,0.80787918]
[1750899274863,0.76792981,107470.0,107460.0,0.83977918]
[1750899275063,0.76792981,107470.0,107460.0,0.49977918]
[1750899275361,0.40712981,107470.0,107460.0,1.20057918]
[1750899275863,0.40712981,107470.0,107460.0,0.86057918]
[1750899276161,0.40707412,107470.0,107460.0,1.21057918]
[1750899276564,0.40707412,107470.0,107460.0,0.86057918]
[1750899276862,0.29707412,107470.0,107460.0,0.64268348]
[1750899277161,0.29707412,107470.0,107460.0,0.3618]
[1750899277352,0.6279576,107470.0,107460.0,0.3618]
[1750899278666,0.34707412,107470.0,107460.0,0.3618]
[1750899282069,0.6279576,107470.0,107460.0,0.3618]
[1750899282263,0.63744407,107470.0,107460.0,0.3618]
[1750899283664,0.9887576,107470.0,107460.0,0.001]
[1750899285068,0.70787412,107470.0,107460.0,0.001]
[1750899285771,0.34707412,107470.0,107460.0,0.001]
[1750899285974,0.70787412,107470.0,107460.0,0.001]
[1750899287271,0.9887576,107470.0,107460.0,0.001]
[1750899287671,0.99819627,107470.0,107460.0,0.001]
[1750899293277,2.21727627,107470.0,107460.0,0.001]
[1750899293978,2.21727627,107470.0,107430.0,0.59511707]
[1750899293979,0.0465001,107460.0,107430.0,0.59511707]
[1750899294170,0.1860304,107440.0,107430.0,1.14167707]
[1750899294570,0.1860304,107440.0,107430.0,0.92283667]
[1750899294779,0.24595745,107440.0,107430.0,0.72627667]
[1750899294973,0.30935745,107440.0,107430.0,0.72627667]
[1750899295673,0.30935745,107440.0,107430.0,0.75877667]
[1750899296177,0.30935745,107440.0,107430.0,0.79147667]
[1750899296577,0.27905745,107440.0,107430.0,0.97752437]
[1750899296975,0.27905745,107440.0,107430.0,1.26040785]
[1750899298980,0.27905745,107440.0,107430.0,1.26640785]
[1750899299370,0.27905745,107440.0,107430.0,1.08036015]
[1750899299570,0.27905745,107440.0,107430.0,0.76777667]
[1750899300883,0.55994093,107440.0,107430.0,0.76777667]
[1750899301181,0.55994093,107440.0,107430.0,0.52527667]
[1750899302586,0.35443817,107440.0,107430.0,0.52527667]
[1750899302981,0.35443817,107440.0,107430.0,0.16447667]
[1750899304390,0.63532165,107440.0,107430.0,0.16447667]
[1750899304983,0.64490626,107440.0,107430.0,0.16447667]
[1750899305491,0.36402278,107440.0,107430.0,0.16447667]
[1750899305787,0.64490626,107440.0,107430.0,0.16447667]
[1750899306289,0.64490626,107440.0,107430.0,0.02447667]
[1750899310787,1.00570626,107440.0,107430.0,0.02447667]
[1750899310987,1.38570626,107440.0,107430.0,0.02447667]
[1750899311194,1.38570626,107440.0,107430.0,0.009]
[1750899312398,1.79886974,107440.0,107430.0,0.009]
[1750899313296,1.51798626,107440.0,107430.0,0.009]
[1750899313498,0.186065,107420.0,107410.0,0.45483097]
[1750899313700,0.754025,107420.0,107410.0,0.78483097]
[1750899314699,0.754025,107420.0,107410.0,0.78983097]
[1750899315804,0.754025,107420.0,107410.0,0.79783097]
[1750899316998,0.816425,107420.0,107410.0,0.79783097]
[1750899317195,0.816425,107420.0,107410.0,0.76603097]
[1750899317400,1.11424032,107420.0,107410.0,0.76603097]
[1750899318618,1.11424032,107420.0,107410.0,0.40523097]
[1750899318911,1.11424032,107420.0,107410.0,0.34393097]
[1750899319109,1.48424032,107420.0,107410.0,0.34393097]
[1750899319301,1.51305799,107420.0,107410.0,0.34393097]
[1750899319504,1.87385799,107420.0,107410.0,0.34393097]
[1750899320610,1.84385799,107420.0,107410.0,0.34393097]
[1750899320813,1.84385799,107420.0,107410.0,0.34293097]
[1750899321313,1.84385799,107420.0,107410.0,0.01293097]
[1750899322000,1.97613799,107420.0,107410.0,0.01293097]
[1750899322402,1.97613799,107420.0,107410.0,0.01093097]
[1750899322812,1.97613799,107420.0,107410.0,0.00893097]
[1750899324916,1.97613799,107420.0,107410.0,7e-08]
[1750899327613,2.00613799,107420.0,107410.0,7e-08]
[1750899328314,0.1860996,107400.0,107390.0,0.37278348]
[1750899328514,0.7541796,107400.0,107390.0,0.71278348]
[1750899329317,0.7541796,107400.0,107390.0,0.4319]
[1750899329515,0.7541796,107400.0,107390.0,0.4359]
[1750899330616,1.03506308,107400.0,107390.0,0.4359]
[1750899330816,1.04456304,107400.0,107390.0,0.4359]
[1750899331017,1.03506308,107400.0,107390.0,0.4359]
[1750899331617,0.7541796,107400.0,107390.0,0.4359]
[1750899332116,0.7541796,107400.0,107390.0,0.4409]
[1750899335120,0.1860996,107400.0,107390.0,0.4409]
[1750899335315,0.7542196,107400.0,107390.0,0.4409]
[1750899336718,0.1860996,107400.0,107390.0,0.4409]
[1750899337024,0.7542196,107400.0,107390.0,1.08258348]
[1750899337315,0.7829793,107400.0,107390.0,1.08258348]
[1750899338322,0.7829793,107400.0,107390.0,0.72178348]
[1750899338518,0.7829793,107400.0,107390.0,0.4409]
[1750899340421,1.06386278,107400.0,107390.0,0.4409]
[1750899340622,1.45546278,107400.0,107390.0,0.379]
[1750899340822,1.53799672,107400.0,107390.0,0.379]
[1750899344424,1.53799672,107400.0,107390.0,0.349]
[1750899347721,1.52106278,107400.0,107390.0,0.349]
[1750899349323,1.53815385,107400.0,107390.0,0.349]
[1750899352535,1.86815385,107400.0,107390.0,0.349]
[1750899352730,1.53815385,107400.0,107390.0,0.349]
[1750899352930,1.85815385,107400.0,107390.0,0.349]
[1750899353131,1.99019385,107400.0,107390.0,0.344]
[1750899353329,1.99019385,107400.0,107390.0,0.3160956]
[1750899353330,2.27107733,107400.0,107390.0,0.3160956]
[1750899353635,0.186117,107390.0,107380.0,3e-08]
[1750899353835,0.186117,107390.0,107370.0,0.01532716]
[1750899353836,0.1861343,107380.0,107370.0,0.01532716]
[1750899354035,2.00710129,107380.0,107370.0,0.21532716]
[1750899354427,2.00710129,107380.0,107370.0,0.01532716]
[1750899355025,2.00710129,107380.0,107370.0,6e-08]
[1750899355631,0.186169,107360.0,107350.0,0.36173149]
[1750899355830,1.08130827,107360.0,107350.0,0.56173149]
[1750899356134,1.17610827,107360.0,107350.0,0.56173149]
[1750899357033,1.17610827,107360.0,107350.0,0.56673149]
[1750899357229,1.87690827,107360.0,107350.0,0.20593149]
[1750899357930,1.87690827,107360.0,107350.0,0.20993149]
[1750899359233,2.00898827,107360.0,107350.0,0.20993149]
[1750899359933,2.00898827,107360.0,107350.0,0.20293149]
[1750899360129,2.00898827,107360.0,107350.0,0.20493149]
[1750899361435,2.00898827,107360.0,107350.0,0.20293149]
[1750899361638,2.00898827,107360.0,107350.0,0.20093149]
[1750899363133,1.66898827,107360.0,107350.0,0.20093149]
[1750899363329,1.98898827,107360.0,107350.0,0.20093149]
[1750899363631,2.06427696,107360.0,107350.0,0.20093149]
[1750899365537,2.07366635,107360.0,107350.0,0.20093149]
[1750899369340,1.75366635,107360.0,107350.0,0.20093149]
[1750899369536,1.75438635,107360.0,107350.0,0.20093149]
[1750899371638,2.06438635,107360.0,107350.0,0.20093149]
[1750899371839,1.75438635,107360.0,107350.0,0.20093149]
[1750899373842,2.13438635,107360.0,107350.0,0.20093149]
[1750899374343,2.06438635,107360.0,107350.0,0.20093149]
[1750899375046,2.06438635,107360.0,107330.0,0.4259]
[1750899375047,0.1862036,107340.0,107330.0,0.4259]
[1750899375233,1.03616708,107340.0,107330.0,0.6579]
[1750899375433,1.03616708,107340.0,107330.0,0.2971]
[1750899376141,0.7552836,107340.0,107330.0,0.2971]
[1750899376337,0.7552836,107340.0,107330.0,0.844121]
[1750899376545,0.1862036,107340.0,107330.0,1.12500448]
[1750899378442,0.1862036,107340.0,107330.0,0.93878348]
[1750899380142,0.1862036,107340.0,107330.0,1.12500448]
[1750899381040,0.1862036,107340.0,107330.0,0.93878348]
[1750899382245,0.21451379,107340.0,107330.0,0.93878348]
[1750899382545,0.1862036,107340.0,107330.0,0.93878348]
[1750899382844,0.2145138,107340.0,107330.0,0.93878348]
[1750899383248,0.2315342,107340.0,107330.0,0.93878348]
[1750899384246,0.2315342,107340.0,107330.0,1.12500448]
[1750899387248,0.2315342,107340.0,107330.0,1.69400448]
[1750899388445,0.0170204,107340.0,107330.0,2.13034048]
[1750899388646,0.1862008,107350.0,107340.0,0.1862036]
[1750899388952,0.028359,107350.0,107340.0,1.41263908]